fUST/lending_fUST_20250210
["ID","MTS","AMOUNT","RATE_DAILY","PERIOD"]
[352504618,1739141350649,-500.0,0.00011094,2]
[352504619,1739141350688,-500.0,0.00011094,2]
[352504620,1739141350727,-523.88000124,0.00011094,2]
[352504621,1739141350765,-500.0,0.00011095,2]
[352504622,1739141350801,-523.06,0.00011095,2]
[352504623,1739141350839,-500.0,0.00011095,2]
[352504624,1739141350877,-500.0,0.00011095,2]
[352504625,1739141350916,-500.0,0.00011095,2]
[352504626,1739141350956,-500.0,0.00011095,2]
[352504627,1739141350995,-500.0,0.00011095,2]
[352504628,1739141351032,-500.0,0.00011095,2]
[352504629,1739141351068,-500.0,0.00011095,2]
[352504630,1739141351105,-500.0,0.00011095,2]
[352504631,1739141351141,-500.0,0.00011095,2]
[352504632,1739141351176,-500.0,0.00011095,2]
[352504633,1739141351215,-500.0,0.00011095,2]
[352504634,1739141351257,-500.0,0.00011095,2]
[352504635,1739141351296,-500.0,0.00011095,2]
[352504636,1739141351337,-500.0,0.00011095,2]
[352504637,1739141351377,-500.0,0.00011095,2]
[352504638,1739141351419,-500.0,0.00011095,2]
[352504639,1739141351460,-500.0,0.00011095,2]
[352504640,1739141351501,-500.0,0.00011095,2]
[352504641,1739141351543,-500.0,0.00011095,2]
[352504642,1739141351585,-500.0,0.00011095,2]
[352504643,1739141351626,-500.0,0.00011095,2]
[352504644,1739141351665,-500.0,0.00011095,2]
[352504645,1739141351711,-233.92,0.00011095,2]
[352504646,1739141351750,-485.15,0.00011095,2]
[352504647,1739141351790,-500.0,0.00011095,2]
[352504648,1739141351832,-500.0,0.00011095,2]
[352504649,1739141351873,-500.0,0.00011095,2]
[352504650,1739141351913,-500.0,0.00011095,2]
[352504651,1739141351953,-500.0,0.00011095,2]
[352504652,1739141351990,-500.0,0.00011095,2]
[352504653,1739141352027,-634.06,0.00011095,2]
[352504654,1739141352063,-500.0,0.00011095,2]
[352504655,1739141352099,-500.0,0.00011095,2]
[352504656,1739141352135,-500.0,0.00011095,2]
[352504657,1739141352176,-500.0,0.00011095,2]
[352504658,1739141352219,-500.0,0.00011095,2]
[352504659,1739141352257,-500.0,0.00011095,2]
[352504660,1739141352418,-500.0,0.00011095,2]
[352504661,1739141352459,-500.0,0.00011095,2]
[352504662,1739141352499,-500.0,0.00011095,2]
[352504663,1739141352537,-500.0,0.00011095,2]
[352504664,1739141352574,-500.0,0.00011095,2]
[352504665,1739141352613,-500.0,0.00011095,2]
[352504666,1739141352652,-500.0,0.00011095,2]
[352504667,1739141352692,-500.0,0.00011095,2]
[352504668,1739141352731,-500.0,0.00011095,2]
[352504669,1739141352767,-500.0,0.00011095,2]
[352504670,1739141352805,-500.0,0.00011095,2]
[352504671,1739141352840,-500.0,0.00011095,2]
[352504672,1739141352878,-500.0,0.00011095,2]
[352504673,1739141352914,-500.0,0.00011095,2]
[352504674,1739141352952,-500.0,0.00011095,2]
[352504675,1739141352990,-500.0,0.00011095,2]
[352504676,1739141353027,-500.0,0.00011095,2]
[352504677,1739141353063,-425.84481811,0.00011095,2]
[352504678,1739141353101,-500.0,0.00011095,2]
[352504679,1739141353138,-500.0,0.00011095,2]
[352504680,1739141353178,-500.0,0.00011095,2]
[352504681,1739141353219,-500.0,0.00011095,2]
[352504682,1739141353256,-500.0,0.00011095,2]
[352504683,1739141353295,-873.91,0.00011095,2]
[352504684,1739141353332,-500.0,0.00011095,2]
[352504685,1739141353372,-1402.88,0.00011095,2]
[352504686,1739141353411,-500.0,0.00011095,2]
[352504687,1739141353451,-3503.20736668,0.00011095,2]
[352504688,1739141353614,-755.06263332,0.00011095,2]
[352504689,1739141353635,-589.98,0.00011095,2]
[352504690,1739141353657,-500.0,0.00011095,2]
[352504691,1739141353678,-500.0,0.00011095,2]
[352504692,1739141353699,-500.0,0.00011095,2]
[352504693,1739141353722,-3476.23,0.00011095,2]
[352504694,1739141353743,-500.0,0.00011095,2]
[352504695,1739141353764,-1245.22,0.00011095,2]
[352504696,1739141353786,-500.0,0.00011095,2]
[352504697,1739141353806,-500.0,0.00011095,2]
[352504698,1739141353829,-1551.86,0.00011095,2]
[352504699,1739141353852,-500.0,0.00011095,2]
[352504700,1739141353876,-1287.02,0.00011095,2]
[352504701,1739141353898,-500.0,0.00011095,2]
[352504702,1739141353919,-747.95,0.00011095,2]
[352504703,1739141353940,-500.0,0.00011095,2]
[352504704,1739141353962,-500.0,0.00011095,2]
[352504705,1739141353982,-500.0,0.00011095,2]
[352504706,1739141354002,-4337.03,0.00011095,2]
[352504707,1739141354023,-7730.67747988,0.00011095,2]
[352504708,1739141354157,-331.58252012,0.00011095,2]
[352504709,1739141354184,-500.0,0.00011095,2]
[352504710,1739141354218,-500.0,0.00011095,2]
[352504711,1739141354241,-500.0,0.00011095,2]
[352504712,1739141354264,-500.0,0.00011095,2]
[352504713,1739141354285,-506.94,0.00011095,2]
[352504714,1739141354307,-500.0,0.00011095,2]
[352504715,1739141354328,-219.45,0.00011095,2]
[352504716,1739141354350,-500.0,0.00011095,2]
[352504717,1739141354373,-500.0,0.00011095,2]
[352504718,1739141354396,-615.26,0.00011095,2]
[352504719,1739141354417,-500.0,0.00011095,2]
[352504720,1739141354439,-500.0,0.00011095,2]
[352504721,1739141354463,-500.0,0.00011095,2]
[352504722,1739141354488,-500.0,0.00011095,2]
[352504723,1739141354512,-500.0,0.00011095,2]
[352504724,1739141354534,-500.0,0.00011095,2]
[352504725,1739141354556,-219.18,0.00011095,2]
[352504726,1739141354580,-500.0,0.00011095,2]
[352504727,1739141354603,-500.0,0.00011095,2]
[352504728,1739141354625,-500.0,0.00011095,2]
[352504729,1739141354648,-794.79,0.00011095,2]
[352504730,1739141354671,-500.0,0.00011095,2]
[352504731,1739141354694,-807.22,0.00011095,2]
[352504732,1739141354716,-700.0,0.00011164,2]
[352504733,1739141354738,-500.0,0.00011232,2]
[352504734,1739141354762,-500.0,0.00011232,2]
[352504735,1739141354784,-500.0,0.00011232,2]
[352504736,1739141354806,-500.0,0.00011232,2]
[352504737,1739141354827,-500.0,0.00011232,2]
[352504738,1739141354849,-635.99,0.00011232,2]
[352504739,1739141354871,-500.0,0.00011232,2]
[352504740,1739141354894,-500.0,0.00011232,2]
[352504741,1739141354919,-500.0,0.00011232,2]
[352504742,1739141354941,-500.0,0.00011232,2]
[352504743,1739141354965,-500.0,0.00011232,2]
[352504744,1739141354986,-500.0,0.00011232,2]
[352504745,1739141355007,-500.0,0.00011232,2]
[352504746,1739141355034,-500.0,0.00011232,2]
[352504747,1739141355057,-500.0,0.00011232,2]
[352504748,1739141355081,-500.0,0.00011232,2]
[352504749,1739141355106,-500.0,0.00011232,2]
[352504750,1739141355130,-500.0,0.00011232,2]
[352504751,1739141355153,-500.0,0.00011232,2]
[352504752,1739141355178,-500.0,0.00011232,2]
[352504753,1739141355201,-500.0,0.00011232,2]
[352504754,1739141355224,-500.0,0.00011232,2]
[352504755,1739141355248,-500.0,0.00011232,2]
[352504756,1739141355271,-500.0,0.00011232,2]
[352504757,1739141355294,-500.0,0.00011232,2]
[352504758,1739141355316,-500.0,0.00011232,2]
[352504759,1739141355338,-500.0,0.00011232,2]
[352504760,1739141355360,-500.0,0.00011232,2]
[352504761,1739141355383,-199.5495152,0.00011232,2]
[352504762,1739141355406,-500.0,0.00011232,2]
[352504763,1739141355428,-500.0,0.00011232,2]
[352504764,1739141355451,-500.0,0.00011232,2]
[352504765,1739141355475,-500.0,0.00011232,2]
[352504766,1739141355497,-500.0,0.00011232,2]
[352504767,1739141355520,-500.0,0.00011232,2]
[352504768,1739141355544,-500.0,0.00011232,2]
[352504769,1739141355566,-500.0,0.00011232,2]
[352504770,1739141355589,-500.0,0.00011232,2]
[352504771,1739141355611,-500.0,0.00011232,2]
[352504772,1739141355633,-500.0,0.00011232,2]
[352504773,1739141355657,-500.0,0.00011232,2]
[352504774,1739141355680,-500.0,0.00011232,2]
[352504775,1739141355702,-500.0,0.00011232,2]
[352504776,1739141355726,-500.0,0.00011232,2]
[352504777,1739141355749,-500.0,0.00011232,2]
[352504778,1739141355887,-500.0,0.00011232,2]
[352504779,1739141355910,-347.32590083,0.00011232,2]
[352504780,1739141355933,-500.0,0.00011232,2]
[352504781,1739141355961,-500.0,0.00011232,2]
[352504782,1739141355984,-500.0,0.00011232,2]
[352504783,1739141356009,-500.0,0.00011232,2]
[352504784,1739141356031,-500.0,0.00011232,2]
[352504785,1739141356054,-500.0,0.00011232,2]
[352504786,1739141356095,-500.0,0.00011232,2]
[352504787,1739141356133,-873.91,0.00011232,2]
[352504788,1739141356178,-500.0,0.00011232,2]
[352504789,1739141356218,-1402.88,0.00011232,2]
[352504790,1739141356260,-500.0,0.00011232,2]
[352504791,1739141356301,-4258.27,0.00011232,2]
[352504792,1739141356341,-589.98,0.00011232,2]
[352504793,1739141356380,-500.0,0.00011232,2]
[352504794,1739141356419,-500.0,0.00011232,2]
[352504795,1739141356458,-500.0,0.00011232,2]
[352504796,1739141356497,-3476.23,0.00011232,2]
[352504797,1739141356536,-500.0,0.00011232,2]
[352504798,1739141356575,-1245.22,0.00011232,2]
[352504799,1739141356615,-500.0,0.00011232,2]
[352504800,1739141356654,-500.0,0.00011232,2]
[352504801,1739141356693,-1551.86,0.00011232,2]
[352504802,1739141356734,-500.0,0.00011232,2]
[352504803,1739141356774,-1287.02,0.00011232,2]
[352504804,1739141356812,-500.0,0.00011232,2]
[352504805,1739141356853,-747.95,0.00011232,2]
[352504806,1739141356892,-500.0,0.00011232,2]
[352504807,1739141356931,-500.0,0.00011232,2]
[352504808,1739141356967,-500.0,0.00011232,2]
[352504809,1739141357006,-4337.03,0.00011232,2]
[352504810,1739141357045,-8062.26,0.00011232,2]
[352504811,1739141357084,-331.75,0.00011232,2]
[352504812,1739141357121,-500.0,0.00011232,2]
[352504813,1739141357158,-500.0,0.00011232,2]
[352504814,1739141357202,-500.0,0.00011232,2]
[352504815,1739141357247,-506.94,0.00011232,2]
[352504816,1739141357287,-500.0,0.00011232,2]
[352504817,1739141357326,-500.0,0.00011232,2]
[352504818,1739141357363,-500.0,0.00011232,2]
[352504819,1739141357403,-615.26,0.00011232,2]
[352504820,1739141357443,-500.0,0.00011232,2]
[352504821,1739141357480,-500.0,0.00011232,2]
[352504822,1739141357519,-500.0,0.00011232,2]
[352504823,1739141357556,-500.0,0.00011232,2]
[352504824,1739141357595,-500.0,0.00011232,2]
[352504825,1739141357632,-500.0,0.00011232,2]
[352504826,1739141357668,-500.0,0.00011232,2]
[352504827,1739141357705,-500.0,0.00011232,2]
[352504828,1739141357744,-794.79,0.00011232,2]
[352504829,1739141357784,-500.0,0.00011232,2]
[352504830,1739141357822,-807.22,0.00011232,2]
[352504831,1739141357860,-542.0378468,0.00011369,2]
[352504832,1739141357897,-500.0,0.00011369,2]
[352504833,1739141357935,-124.53677819,0.00011369,2]
[352504834,1739141358317,-842.57,0.00010959,2]
[352504835,1739141358340,-436.92322181,0.00011369,2]
[352504836,1739141358363,-489.9,0.00011369,2]
[352504837,1739141358387,-500.0,0.00011369,2]
[352504838,1739141358410,-500.0,0.00011369,2]
[352504839,1739141358432,-500.0,0.00011369,2]
[352504840,1739141358455,-500.0,0.00011369,2]
[352504841,1739141358478,-500.0,0.00011369,2]
[352504842,1739141358502,-500.0,0.00011369,2]
[352504843,1739141358524,-500.0,0.00011369,2]
[352504844,1739141358551,-500.0,0.00011369,2]
[352504845,1739141358573,-500.0,0.00011369,2]
[352504846,1739141358596,-500.0,0.00011369,2]
[352504847,1739141358618,-500.0,0.00011369,2]
[352504848,1739141358640,-500.0,0.00011369,2]
[352504849,1739141358664,-484.31272665,0.00011369,2]
[352504850,1739141360106,-500.0,0.00010958,2]
[352504851,1739141360129,-500.0,0.00011095,2]
[352504852,1739141360150,-500.0,0.00011232,2]
[352504853,1739141360175,-78.04727335,0.00011369,2]
[352504854,1739141360196,-500.0,0.00011369,2]
[352504855,1739141360219,-500.0,0.00011369,2]
[352504856,1739141360240,-500.0,0.00011369,2]
[352504857,1739141360264,-500.0,0.00011369,2]
[352504858,1739141360285,-500.0,0.00011369,2]
[352504859,1739141360306,-500.0,0.00011369,2]
[352504860,1739141360327,-500.0,0.00011369,2]
[352504861,1739141360350,-500.0,0.00011369,2]
[352504862,1739141360374,-571.69925632,0.00011369,2]
[352504863,1739141360396,-500.0,0.00011369,2]
[352504864,1739141360419,-500.0,0.00011369,2]
[352504865,1739141360442,-500.0,0.00011369,2]
[352504866,1739141360464,-247.88040254,0.00011369,2]
[352504867,1739141360486,-500.0,0.00011369,2]
[352504868,1739141360509,-311.04,0.00011369,2]
[352504869,1739141360530,-500.0,0.00011369,2]
[352504870,1739141360553,-500.0,0.00011369,2]
[352504871,1739141360576,-500.0,0.00011369,2]
[352504872,1739141360598,-500.0,0.00011369,2]
[352504873,1739141360619,-500.0,0.00011369,2]
[352504874,1739141360640,-299.79,0.00011369,2]
[352504875,1739141360661,-365.98918277,0.00011369,2]
[352504876,1739141360683,-873.91,0.00011369,2]
[352504877,1739141360705,-500.0,0.00011369,2]
[352504878,1739141360863,-1402.88,0.00011369,2]
[352504879,1739141360886,-500.0,0.00011369,2]
[352504880,1739141360913,-1521.30985678,0.00011369,2]
[352504881,1739141363098,-1568.21922306,0.00011369,2]
[352504882,1739141363135,-1168.74092016,0.00011369,2]
[352504883,1739141363159,-589.98,0.00011369,2]
[352504884,1739141363186,-500.0,0.00011369,2]
[352504885,1739141363211,-500.0,0.00011369,2]
[352504886,1739141363239,-500.0,0.00011369,2]
[352504887,1739141363266,-3476.23,0.00011369,2]
[352504888,1739141363288,-562.98,0.00011369,2]
[352504889,1739141363310,-1245.22,0.00011369,2]
[352504890,1739141363332,-500.0,0.00011369,2]
[352504891,1739141363356,-1551.86,0.00011369,2]
[352504892,1739141363379,-500.0,0.00011369,2]
[352504893,1739141363401,-1287.02,0.00011369,2]
[352504894,1739141363424,-500.0,0.00011369,2]
[352504895,1739141363447,-747.95,0.00011369,2]
[352504896,1739141363473,-500.0,0.00011369,2]
[352504897,1739141363494,-500.0,0.00011369,2]
[352504898,1739141363516,-84.34136922,0.00011369,2]
[352504899,1739141366135,-415.65863078,0.00011369,2]
[352504900,1739141366159,-1879.30262228,0.00011369,2]
[352504901,1739141370144,-2457.72737772,0.00011369,2]
[352504902,1739141370168,-8062.26,0.00011369,2]
[352504903,1739141370196,-500.0,0.00011369,2]
[352504904,1739141370220,-500.0,0.00011369,2]
[352504905,1739141370245,-500.0,0.00011369,2]
[352504906,1739141370272,-506.94,0.00011369,2]
[352504907,1739141370296,-500.0,0.00011369,2]
[352504908,1739141370318,-500.0,0.00011369,2]
[352504909,1739141370342,-500.0,0.00011369,2]
[352504910,1739141370366,-615.26,0.00011369,2]
[352504911,1739141370390,-526.4599109,0.00011369,2]
[352504912,1739141370413,-500.0,0.00011369,2]
[352504913,1739141370437,-500.0,0.00011369,2]
[352504914,1739141370460,-500.0,0.00011369,2]
[352504915,1739141370485,-500.0,0.00011369,2]
[352504916,1739141370508,-500.0,0.00011369,2]
[352504917,1739141370533,-794.79,0.00011369,2]
[352504918,1739141370557,-807.22,0.00011369,2]
[352504919,1739141370580,-500.0,0.00011369,2]
[352504920,1739141370604,-500.0,0.00011506,2]
[352504921,1739141370626,-19849.97048137,0.00011506,4]
[352504922,1739141370648,-648.4,0.00011506,2]
[352504923,1739141370671,-500.0,0.00011506,2]
[352504924,1739141370694,-500.0,0.00011506,2]
[352504925,1739141370718,-500.0,0.00011506,2]
[352504926,1739141370750,-500.0,0.00011506,2]
[352504927,1739141370775,-305.13750839,0.00011506,2]
[352504961,1739141436063,-264.16439999,0.00010957,2]
[352504962,1739141436076,-35.83560001,0.00010957,2]
[352504963,1739141436085,-500.0,0.00010958,2]
[352504964,1739141436095,-500.0,0.00010958,2]
[352504965,1739141436105,-500.0,0.00010958,2]
[352504966,1739141436115,-500.0,0.00010958,2]
[352504967,1739141436124,-500.0,0.00010958,2]
[352504968,1739141436134,-500.0,0.00010958,2]
[352504969,1739141436143,-500.0,0.00010958,2]
[352504970,1739141436152,-1180.94,0.00010958,2]
[352504971,1739141436162,-1256.49,0.00010958,2]
[352504972,1739141436171,-500.0,0.00010958,2]
[352504973,1739141436181,-222.68503567,0.00010958,2]
[352504974,1739141436196,-483.78496433,0.00010958,2]
[352504975,1739141436206,-187.92916338,0.00010958,2]
[352504976,1739141436221,-305.85782262,0.00010958,2]
[352504977,1739141436316,-6.213014,0.00010958,2]
[352504978,1739141436326,-644.94,0.00011095,2]
[352504979,1739141436335,-285.89229665,0.00011095,2]
[352505024,1739141438109,-214.10770335,0.00011095,2]
[352505025,1739141438119,-500.0,0.00011095,2]
[352505026,1739141438129,-500.0,0.00011095,2]
[352505027,1739141438138,-500.0,0.00011095,2]
[352505028,1739141438148,-500.0,0.00011095,2]
[352505029,1739141438157,-500.0,0.00011095,2]
[352505030,1739141438167,-1180.94,0.00011095,2]
[352505031,1739141438177,-1063.86113694,0.00011095,2]
[352505032,1739141438192,-192.62886306,0.00011095,2]
[352505033,1739141438202,-500.0,0.00011095,2]
[352505034,1739141438212,-706.47,0.00011095,2]
[352505035,1739141438221,-531.43,0.00011095,2]
[352505037,1739141438232,-600.0,0.00011164,2]
[352505038,1739141438241,-500.0,0.00011232,2]
[352505041,1739141438251,-500.0,0.00011232,2]
[352505042,1739141438260,-500.0,0.00011232,2]
[352505044,1739141438270,-500.0,0.00011232,2]
[352505046,1739141438279,-500.0,0.00011232,2]
[352505047,1739141438289,-500.0,0.00011232,2]
[352505048,1739141438298,-1180.94,0.00011232,2]
[352505049,1739141438307,-1256.49,0.00011232,2]
[352505050,1739141438317,-500.0,0.00011232,2]
[352505051,1739141438326,-706.47,0.00011232,2]
[352505052,1739141438336,-500.0,0.00011369,2]
[352505053,1739141438344,-500.0,0.00011369,2]
[352505054,1739141438354,-500.0,0.00011369,2]
[352505055,1739141438364,-500.0,0.00011369,2]
[352505056,1739141438374,-500.0,0.00011369,2]
[352505057,1739141438383,-500.0,0.00011369,2]
[352505058,1739141438393,-1180.94,0.00011369,2]
[352505059,1739141438402,-1256.49,0.00011369,2]
[352505060,1739141438412,-500.0,0.00011369,2]
[352505061,1739141438421,-706.47,0.00011369,2]
[352505062,1739141438430,-194.86249161,0.00011506,2]
[352505063,1739141438440,-500.0,0.00011506,2]
[352505064,1739141438449,-500.0,0.00011506,2]
[352505065,1739141438459,-500.0,0.00011506,2]
[352505066,1739141438468,-500.0,0.00011506,2]
[352505067,1739141438478,-500.0,0.00011506,2]
[352505068,1739141438487,-543.24,0.00011506,2]
[352505069,1739141438496,-618.35,0.00011506,2]
[352505070,1739141438505,-500.0,0.00011506,2]
[352505071,1739141438514,-500.0,0.00011506,2]
[352505072,1739141438523,-500.0,0.00011506,2]
[352505073,1739141438533,-500.0,0.00011506,2]
[352505074,1739141438543,-500.0,0.00011506,2]
[352505075,1739141438552,-500.0,0.00011506,2]
[352505076,1739141438562,-500.0,0.00011506,2]
[352505077,1739141438571,-500.0,0.00011506,2]
[352505078,1739141438581,-500.0,0.00011506,2]
[352505079,1739141438590,-566.7,0.00011506,2]
[352505080,1739141438599,-500.0,0.00011506,2]
[352505081,1739141438609,-500.0,0.00011506,2]
[352505082,1739141438619,-4258.27,0.00011506,2]
[352505083,1739141438629,-2721.70994356,0.00011506,4]
[352505084,1739141438645,-3894.94688357,0.00011506,4]
[352505085,1739141438655,-500.0,0.00011506,2]
[352505086,1739141438665,-500.0,0.00011506,2]
[352505087,1739141438676,-3476.23,0.00011506,2]
[352505088,1739141438690,-1245.22,0.00011506,2]
[352505089,1739141438703,-500.0,0.00011506,2]
[352505090,1739141438718,-1551.86,0.00011506,2]
[352505091,1739141438732,-322.21245798,0.00011506,2]
[352505092,1739141438744,-1287.02,0.00011506,2]
[352505093,1739141438754,-500.0,0.00011506,2]
[352505094,1739141438767,-747.95,0.00011506,2]
[352505095,1739141438779,-500.0,0.00011506,2]
[352505096,1739141438792,-500.0,0.00011506,2]
[352505097,1739141438804,-500.0,0.00011506,2]
[352505098,1739141438816,-4337.03,0.00011506,2]
[352505099,1739141438829,-8062.26,0.00011506,2]
[352505100,1739141438841,-500.0,0.00011506,2]
[352505101,1739141438853,-590.76568155,0.00011506,2]
[352505102,1739141438866,-500.0,0.00011506,2]
[352505103,1739141438879,-506.94,0.00011506,2]
[352505104,1739141438891,-500.0,0.00011506,2]
[352505105,1739141438903,-500.0,0.00011506,2]
[352505106,1739141438916,-500.0,0.00011506,2]
[352505107,1739141438928,-615.26,0.00011506,2]
[352505108,1739141438940,-500.0,0.00011506,2]
[352505109,1739141438953,-500.0,0.00011506,2]
[352505110,1739141438965,-500.0,0.00011506,2]
[352505111,1739141438977,-648.27,0.00011506,2]
[352505112,1739141438989,-500.0,0.00011506,2]
[352505113,1739141439000,-794.79,0.00011506,2]
[352505114,1739141439012,-807.22,0.00011506,2]
[352505115,1739141439023,-500.0,0.00011506,2]
[352505116,1739141439033,-500.0,0.00011506,2]
[352505117,1739141439046,-500.0,0.00011506,2]
[352505118,1739141439057,-500.0,0.00011506,2]
[352505119,1739141439068,-500.0,0.00011506,2]
[352505120,1739141439081,-500.0,0.00011506,2]
[352505121,1739141439093,-500.0,0.00011506,2]
[352505122,1739141439105,-1180.94,0.00011506,2]
[352505123,1739141439117,-1256.49,0.00011506,2]
[352505124,1739141439130,-500.0,0.00011506,2]
[352505125,1739141439143,-706.47,0.00011506,2]
[352505126,1739141439156,-500.0,0.00011624,2]
[352505127,1739141439169,-476.86,0.00011643,2]
[352505128,1739141439181,-266.94,0.00011643,2]
[352505129,1739141439194,-500.0,0.00011643,2]
[352505130,1739141439205,-569.08,0.00011643,2]
[352505131,1739141439215,-649.7,0.00011643,2]
[352505132,1739141439230,-500.0,0.00011643,2]
[352505133,1739141439241,-321.58,0.00011643,2]
[352505134,1739141439255,-500.0,0.00011643,2]
[352505135,1739141439271,-500.0,0.00011643,2]
[352505136,1739141439284,-500.0,0.00011643,2]
[352505137,1739141439295,-500.0,0.00011643,2]
[352505138,1739141439306,-500.0,0.00011643,2]
[352505139,1739141439318,-500.0,0.00011643,2]
[352505140,1739141439329,-540.4,0.00011643,2]
[352505141,1739141439340,-293.22,0.00011643,2]
[352505142,1739141439353,-193.74,0.00011643,2]
[352505143,1739141439367,-500.0,0.00011643,2]
[352505144,1739141439379,-500.0,0.00011643,2]
[352505145,1739141439391,-500.0,0.00011643,2]
[352505146,1739141439402,-500.0,0.00011643,2]
[352505147,1739141439415,-4258.27,0.00011643,2]
[352505148,1739141439426,-500.0,0.00011643,2]
[352505149,1739141439437,-500.0,0.00011643,2]
[352505150,1739141439448,-3476.23,0.00011643,2]
[352505151,1739141439459,-1245.22,0.00011643,2]
[352505152,1739141439470,-500.0,0.00011643,2]
[352505153,1739141439481,-1551.86,0.00011643,2]
[352505154,1739141439493,-1287.02,0.00011643,2]
[352505155,1739141439504,-500.0,0.00011643,2]
[352505156,1739141439516,-747.95,0.00011643,2]
[352505157,1739141439527,-168.24,0.00011643,2]
[352505158,1739141439538,-500.0,0.00011643,2]
[352505159,1739141439549,-500.0,0.00011643,2]
[352505160,1739141439561,-4337.03,0.00011643,2]
[352505161,1739141439572,-8062.26,0.00011643,2]
[352505162,1739141439584,-500.0,0.00011643,2]
[352505163,1739141439595,-500.0,0.00011643,2]
[352505164,1739141439606,-506.94,0.00011643,2]
[352505165,1739141439617,-500.0,0.00011643,2]
[352505166,1739141439628,-500.0,0.00011643,2]
[352505167,1739141439638,-500.0,0.00011643,2]
[352505168,1739141439649,-615.26,0.00011643,2]
[352505169,1739141439660,-500.0,0.00011643,2]
[352505170,1739141439671,-500.0,0.00011643,2]
[352505171,1739141439682,-500.0,0.00011643,2]
[352505172,1739141439693,-500.0,0.00011643,2]
[352505174,1739141439704,-794.79,0.00011643,2]
[352505177,1739141439716,-807.22,0.00011643,2]
[352505179,1739141439727,-500.0,0.00011643,2]
[352505181,1739141439738,-500.0,0.00011643,2]
[352505183,1739141439749,-500.0,0.00011643,2]
[352505186,1739141439760,-500.0,0.00011643,2]
[352505188,1739141439771,-455.53,0.00011643,2]
[352505191,1739141439782,-500.0,0.00011643,2]
[352505193,1739141439794,-1180.94,0.00011643,2]
[352505195,1739141439806,-1256.49,0.00011643,2]
[352505197,1739141439817,-500.0,0.00011643,2]
[352505200,1739141439828,-706.47,0.00011643,2]
[352505202,1739141439838,-500.0,0.00011645,2]
[352505204,1739141439850,-500.0,0.00011645,2]
[352505205,1739141439861,-169.32000014,0.00011779,2]
[352505206,1739141439872,-500.0,0.0001178,2]
[352505207,1739141439884,-500.0,0.0001178,2]
[352505209,1739141439896,-500.0,0.0001178,2]
[352505211,1739141439907,-575.08,0.0001178,2]
[352505214,1739141439916,-238.1,0.0001178,2]
[352505216,1739141439926,-500.0,0.0001178,2]
[352505218,1739141439935,-500.0,0.0001178,2]
[352505220,1739141439946,-500.0,0.0001178,2]
[352505222,1739141439955,-500.0,0.0001178,2]
[352505223,1739141439966,-500.0,0.0001178,2]
[352505224,1739141439976,-194.24,0.0001178,2]
[352505225,1739141439986,-408.02,0.0001178,2]